Cogmind - Beta 15 @@@ ROGUE MODE // 2025.06.28 @ 17:02:13 Player: Demo Result: Destroyed by P-60 Hacker with Shock Rifle Performance ------------- Evolutions (3) 1500 Regions Visited (8) 1600 Robots Destroyed (90) 450 Value Destroyed (2883) 2883 Prototype IDs (28) 560 Alien Tech Used (0) 0 Bonus (624) 624 TOTAL SCORE: 7617 Bonus ------- High Alert Combat Kills 124 Entered Garrisons 200 Aligned with FarCom 300 Cogmind --------- Core Integrity 0/700 Matter 216/300 Energy 36/160 System Corruption 11% Temperature Cool (8) Movement Flying (26) Location -7/Garrison Parts ------- > --- POWER (1) -------- Light Nuclear Core > --- PROPULSION (6) --- VTOL Module VTOL Module VTOL Module VTOL Module > --- UTILITY (2) ------ Advanced Terrain Scan Processor > --- WEAPON (4) ------- Autogun > --- INVENTORY (5) ---- Improved Weapon Shielding Heavy Explosive Trap Peak State ------------ > --- POWER ------------ Light Nuclear Core > --- PROPULSION ------- Light Treads Advanced Treads Aluminum Leg Carbon-fiber Leg Carbon-fiber Leg VTOL Module > --- UTILITY ---------- Improved Cooling System Huge Storage Unit > --- WEAPON ----------- AWS/Thermal Advanced Assault Cannon Missile Launcher > --- INVENTORY -------- Micro Nuclear Core Micro Nuclear Core High-capacity Matter Pod High-capacity Matter Pod Structural Scanner Improved Signal Interpreter Advanced Terrain Scan Processor Advanced Targeting Computer Core Analyzer Energy Filter Weapon Cycler Weapon Cycler Improved Weapon Shielding Hardened Light Armor Plating Hardened Medium Armor Plating Improved Light Armor Plating Chronowheel Autogun Improved Datajack Field Lobotomy Kit Plasma Cutter [Rating: 51] Favorites ----------- Power Nuclear Core Engine Light Ion Engine Power Core Nuclear Core Propulsion Advanced Treads Treads Advanced Treads Leg Carbon-fiber Leg Wheel Wheel Flight Unit VTOL Module Utility Huge Storage Unit Device Seismic Detector Storage Huge Storage Unit Processor Advanced Terrain Scan Processor Protection Hardened Light Armor Plating Weapon Heavy Assault Rifle Energy Gun Heavy EM Shotgun Energy Cannon Advanced Beam Cannon Ballistic Gun Heavy Assault Rifle Ballistic Cannon Advanced Assault Cannon Launcher Missile Launcher Special Weapon Field Lobotomy Kit Build | -11 -10 -9 -9 -9 -8 -8 -7 -7 ------- Run | Yrd Mat Mat Min Exi Min Mat Fac Gar Slots Evolved 6 | . . 2 . . . 2 2 . Power . | . . . . . . . . . Propulsion 4 | . . . . . . 2 2 . Utility . | . . . . . . . . . Weapon 2 | . . 2 . . . . . . Parts Attached 75 | 8 1 7 . 2 3 22 11 21 Power 6 | 1 . . . . 2 . 2 1 Engine 2 | 1 . . . . 1 . . . Core 4 | . . . . . 1 . 2 1 Reactor . | . . . . . . . . . Propulsion 26 | 2 . . . . . 11 3 10 Treads 12 | 1 . . . . . 8 2 1 Leg 3 | . . . . . . . . 3 Wheel 5 | 1 . . . . . 3 1 . Hover . | . . . . . . . . . Flight 6 | . . . . . . . . 6 Utility 13 | 2 1 . . . 1 5 2 2 Device 4 | 1 . . . . . . 2 1 Storage 3 | 1 1 . . . 1 . . . Processor 1 | . . . . . . . . 1 Hackware . | . . . . . . . . . Protection 5 | . . . . . . 5 . . Artifact . | . . . . . . . . . Weapon 30 | 3 . 7 . 2 . 6 4 8 Energy Gun 10 | 2 . 1 . . . 3 1 3 Energy Cannon 3 | . . 3 . . . . . . Ballistic Gun 11 | 1 . 3 . 2 . 2 . 3 Ballistic Cannon 4 | . . . . . . 1 3 . Launcher 1 | . . . . . . . . 1 Special Weapon 1 | . . . . . . . . 1 Impact Weapon . | . . . . . . . . . Slashing Weapon . | . . . . . . . . . Piercing Weapon . | . . . . . . . . . Special Melee Weapon . | . . . . . . . . . Unidentified Prototypes 5 | . . 2 . . . 3 . . Corrupted Parts 1 | . . . . . . . . 1 System Corruption 1 | . . . . . . . . 1 Parts Lost 29 | . . 1 . . . 5 7 16 Power 3 | . . . . . . . 2 1 Propulsion 14 | . . . . . . 2 3 9 Utility 2 | . . . . . . 1 . 1 Weapon 10 | . . 1 . . . 2 2 5 Highest Loss Streak 8 | . . 1 . . . 2 3 8 To Critical Strikes . | . . . . . . . . . Average Backups 18 | 1 5 11 15 14 15 23 23 17 Power 1 | . . . 1 1 1 2 2 1 Propulsion 2 | . 4 4 4 3 3 4 1 . Utility 8 | . . 2 4 4 4 9 12 11 Weapon 2 | . 1 2 3 2 3 4 3 1 Tool/Special . | . . . . . . . . . Unused Backups 41 | . . 3 2 3 1 12 3 17 Power 5 | . . . . . . 2 1 2 Propulsion 5 | . . 1 . 1 1 . 2 . Utility 24 | . . . 2 1 . 9 . 12 Weapon 4 | . . 2 . . . 1 . 1 Tool/Special 3 | . . . . 1 . . . 2 Average Slot Usage (%) 92 | . 100 97 100 100 100 98 98 73 Engine 2 | . 14 11 11 11 7 . . . Core 5 | . . . . . 3 9 6 5 Treads 22 | . 14 11 11 11 11 24 42 15 Leg 2 | . . . . . . . . 10 Wheel 6 | . 14 11 11 11 11 10 2 1 Flight 1 | . . . . . . . . 4 Device 6 | . 14 11 11 11 11 1 5 5 Storage 8 | . 14 11 11 11 11 9 7 5 Protection 2 | . . . . . . 7 1 . Energy Gun 10 | . 14 17 11 11 11 10 12 7 Ballistic Gun 16 | . 14 19 33 33 33 25 7 3 Ballistic Cannon 4 | . . . . . . . 9 7 Peak Build Rating 51 | 7 7 15 12 17 21 38 46 51 Average Rating 29 | 5 7 11 12 14 18 30 44 34 On Entrance 17 | . 7 7 12 12 17 21 37 42 Naked Turns 1 | . . . . . . . . 1 Heaviest Build 110 | 12 27 33 31 35 99 107 110 107 Greatest Support 131 | 10 10 10 10 10 10 87 131 84 Greatest Overweight (x) 10 | 1 2 3 3 3 9 10 1 2 Average Overweight (x) 1 | . 1 2 3 3 4 3 . . Largest Inventory Capacity 25 | 8 15 15 15 15 25 25 25 25 Average Capacity 21 | 7 13 15 15 15 18 25 25 20 Most Carried 25 | 5 6 15 15 15 22 25 25 25 Average Carried 19 | 1 5 11 15 14 16 24 24 18 Final Capacity 25 | 8 15 15 15 15 25 25 25 5 Final Carried 25 | 5 5 15 15 15 22 25 23 2 Class Distribution -------------------- 27% | Gunner 15% | Skirmisher 13% | Derelict-Gunner 12% | Derelict-Skirmisher 9% | Mutant 8% | Scavenger-Gunner 4% | Scavenger-Skirmisher 4% | Derelict-Tank Dominant Class ---------------- Mutant | -10/Materials Gunner | -9/Materials Gunner | -9/Mines Gunner | -9/Exiles Skirmisher | -8/Mines Derelict-Skirmisher | -8/Materials Derelict-Gunner | -7/Factory Scavenger-Gunner | -7/Garrison Resources | -11 -10 -9 -9 -9 -8 -8 -7 -7 ----------- Run | Yrd Mat Mat Min Exi Min Mat Fac Gar Matter Collected 3116 | 290 . 173 85 . 119 928 684 837 Remotely . | . . . . . . . . . Salvage Created 3571 | 157 . 272 . . 67 1409 833 833 Parts 180 | 17 . 16 . . 7 80 32 28 Haulers Intercepted 5 | . . 1 . . . 2 2 . Recyclers Shooed 4 | 1 . . . . . 2 1 . Parts Field Recycled . | . . . . . . . . . Retrieved Matter . | . . . . . . . . . Parts Self-Destructed . | . . . . . . . . . Prevented . | . . . . . . . . . Kills | -11 -10 -9 -9 -9 -8 -8 -7 -7 ------- Run | Yrd Mat Mat Min Exi Min Mat Fac Gar Combat Hostiles Destroyed 99 | . . 6 . . 3 24 17 49 Guns 62 | . . 6 . . 3 24 9 20 Cannons 15 | . . . . . . . 6 9 AOE 22 | . . . . . . . 2 20 Classes Destroyed 16 | 3 . 6 . . . 3 . 4 Worker 5 | 1 . . . . . 3 1 . Builder 5 | . . 1 . . 1 2 1 . Tunneler 5 | 4 . . . . . . 1 . Hauler 5 | . . 1 . . . 2 2 . Recycler 2 | 1 . . . . . 1 . . Operator 2 | . . 1 . . . . 1 . Watcher 2 | . . . . . . 2 . . Swarmer 16 | . . 3 . . 3 3 . 7 Grunt 35 | . . 2 . . . 16 14 3 Brawler 1 | . . . . . . . . 1 Duelist 1 | . . . . . . . . 1 Sentry 6 | . . 1 . . . 2 3 . Specialist 2 | . . . . . . 2 . . Hunter 2 | . . . . . . 1 . 1 Programmer 1 | . . . . . . . . 1 Assembled 35 | . . . . . . . . 35 Best Kill Streak 28 | 4 . 5 . . 3 6 4 28 Combat Bots Only 28 | . . 3 . . 3 5 4 28 Max Kills in Single Turn 5 | 1 . 2 . . 1 3 2 5 Gunslinging 1 | . . 1 . . . . . . Exploded 5 | . . . . . . . 2 5 Melee . | . . . . . . . . . Uniques/NPCs Destroyed . | . . . . . . . . . Combat | -11 -10 -9 -9 -9 -8 -8 -7 -7 -------- Run | Yrd Mat Mat Min Exi Min Mat Fac Gar Hostile Shots Fired 472 | . . 16 . . 4 108 167 177 Missed 144 | . . 4 . . 1 23 58 58 Hits 328 | . . 12 . . 3 85 109 119 Melee 7 | . . . . . . . . 7 Projectile 321 | . . 12 . . 3 85 109 112 Critical Strikes 4 | . . 1 . . . 3 . . Damage Taken 4580 | . . 134 . . 25 1361 1168 1892 Core 864 | . . 19 . . . 141 75 629 Absorbed by Shields 10 | . . . . . . . . 10 Regen/Repaired (Parts) 95 | . . . . . . . 95 . Core Remaining (%) 92 | 100 100 . . . 95 74 . . Volleys Fired 259 | 13 . 11 . . 6 82 49 98 Largest 4 | 2 . 4 . . 4 4 4 4 Hottest 191 | 80 . 156 . . 109 159 191 191 Shots Fired 738 | 26 . 41 . 1 24 276 165 205 Gun 568 | 26 . 34 . 1 24 262 88 133 Cannon 151 | . . 7 . . . 14 77 53 Launcher 14 | . . . . . . . . 14 Special 5 | . . . . . . . . 5 Kinetic 455 | 11 . 16 . . 18 220 105 85 Thermal 150 | 13 . 10 . . . 11 40 76 Explosive 14 | . . . . . . . . 14 Electromagnetic 114 | 2 . 15 . 1 6 45 20 25 Robot Hit Streak 13 | 6 . 6 . . 3 8 13 12 Robot Miss Streak 5 | 3 . 2 . . 3 5 3 5 Penetration Max . | . . . . . . . . . Secondary Targets 5 | . . 1 . . . 4 . . Max Gunslinging Chain 1 | . . 1 . . . 1 . . Autonomous 52 | . . . . . . . . 52 Shots Hit Robots 412 | 14 . 17 . . 9 163 102 107 Core Hits 217 | 7 . 11 . . 5 69 46 79 Critical Kills . | . . . . . . . . . Critical Parts Destroyed 1 | . . . . . . . . 1 Critical Strikes 10 | . . . . . . . 7 3 Burn 3 | . . . . . . . 3 . Destroy 1 | . . . . . . . . 1 Blast 6 | . . . . . . . 4 2 Melee Attacks . | . . . . . . . . . Impact . | . . . . . . . . . Slashing . | . . . . . . . . . Piercing . | . . . . . . . . . Sneak Attacks . | . . . . . . . . . Combat Hostiles . | . . . . . . . . . Follow-up Attacks . | . . . . . . . . . Damage Inflicted 9752 | 178 . 285 . . 165 2889 2573 3662 Guns 6140 | 178 . 218 . . 165 2699 1200 1680 Cannons 1649 | . . 22 . . . 22 1125 480 Explosions 1903 | . . 45 . . . 168 248 1442 Melee . | . . . . . . . . . Ramming 60 | . . . . . . . . 60 Kinetic 4437 | 76 . 69 . . 126 1960 1520 686 Thermal 2705 | 90 . 57 . . . 308 708 1542 Explosive 1235 | . . . . . . . . 1235 Electromagnetic 1315 | 12 . 159 . . 39 621 345 139 Impact . | . . . . . . . . . Slashing . | . . . . . . . . . Piercing . | . . . . . . . . . Highest Corruption 11 | . 4 2 2 2 2 . . 11 Average Corruption 3 | . 3 2 2 2 2 . . 9 Corruption Purged . | . . . . . . . . . Corruption Blocked . | . . . . . . . . . Effects 29 | . . 5 . 3 10 . . 11 Message Errors 4 | . . . . . 2 . . 2 Matter Fused 8 | . . 2 . 1 3 . . 2 Heat Flow Errors 2 | . . 1 . . 1 . . . Energy Discharges 4 | . . 1 . 1 1 . . 1 Parts Rejected 2 | . . . . . . . . 2 Data Loss (minor) 3 | . . . . . 2 . . 1 Data Loss (major) 2 | . . . . . 1 . . 1 Misfires 2 | . . 1 . 1 . . . . Misdirections 2 | . . . . . . . . 2 Overload Shots . | . . . . . . . . . Overflow Damage 137 | . . . . . . 37 24 76 Projectiles 40 | . . . . . . . 11 29 Explosions 97 | . . . . . . 37 13 47 Melee . | . . . . . . . . . Knockbacks 16 | . . . . . . . 11 5 Impact 2 | . . . . . . . . 2 Kinetic 13 | . . . . . . . 10 3 Secondary 1 | . . . . . . . 1 . Self-Inflicted Damage 248 | . . . . . . 49 76 123 Shots 6 | . . . . . . 1 2 3 Rammed 5 | . . . . . . . . 5 Targets Rammed 15 | . . . . . . . . 15 Kicked 10 | . . . . . . . . 10 Crushed . | . . . . . . . . . Highest Temperature 291 | 6 . 201 . . 250 291 276 104 Average Temperature 63 | 3 . 73 . . 141 61 58 33 Received Heat Transfer 1310 | . . 72 . . . 486 450 302 Siege Activations . | . . . . . . . . . Martial Activations . | . . . . . . . . . Shielding Activations . | . . . . . . . . . Robots Disrupted . | . . . . . . . . . Combat Hostiles . | . . . . . . . . . Robots Corrupted . | . . . . . . . . . Combat Hostiles . | . . . . . . . . . Parts Fried 2 | . . . . . . 1 . 1 Impact Corruptions . | . . . . . . . . . Robots Melted . | . . . . . . . . . Combat Hostiles . | . . . . . . . . . Parts Melted 1 | . . . . . . . . 1 Heat Transferred 3986 | 200 . 75 . . . 509 1323 1879 Parts Sabotaged . | . . . . . . . . . Parts Stolen . | . . . . . . . . . Parts Stripped . | . . . . . . . . . Power Chain Reactions 6 | . . 1 . . . 2 2 1 Alert | -11 -10 -9 -9 -9 -8 -8 -7 -7 ------- Run | Yrd Mat Mat Min Exi Min Mat Fac Gar Maximum Alert Level 3 | . . . . . . 1 1 3 Low Security (%) 57 | 100 100 100 100 . 100 48 82 . Level 1 19 | . . . . . . 51 17 12 Level 2 20 | . . . . . . . . 76 Level 3 2 | . . . . . . . . 10 Level 4 . | . . . . . . . . . Level 5 . | . . . . . . . . . High Security . | . . . . . . . . . Max Security . | . . . . . . . . . Peak Influence 723 | 15 3 84 . . 81 352 332 723 Initial 235 | . 3 . . . . . 140 235 Average 215 | 4 . 32 . . 12 180 109 546 Influence Increases 2421 | 30 . 169 . . 86 763 696 677 Destroy 0b10 Robot/C 1280 | . . 120 . . 60 480 340 280 Destroy 0b10 Robot/NC 135 | 30 . 15 . . 5 50 30 5 Destroy Leader 254 | . . 22 . . 10 108 84 30 Allied During Kill 11 | . . . . . 11 . . . Successful Hack 50 | . . 10 . . . . 40 . Disable Machine 180 | . . . . . . 45 90 45 Anti-Garrison Action 200 | . . . . . . . . 200 Destroy Structure 146 | . . 2 . . . 20 67 57 Lose Combat Pursuer 165 | . . . . . . 60 45 60 Influence Decreases 1749 | 25 5 169 . . 86 453 670 341 Entered New Map 273 | . 2 . . . . . 170 101 Time Decay 1106 | 25 3 159 . . 86 403 430 . Lost Part 290 | . . 10 . . . 50 70 160 Lost Ally 80 | . . . . . . . . 80 Squads Dispatched 11 | . . . . . . 6 5 . Investigation 3 | . . . . . . 2 1 . Extermination 1 | . . . . . . . 1 . Reinforcement 6 | . . . . . . 4 2 . Assault . | . . . . . . . . . Garrison 1 | . . . . . . . 1 . Intercept . | . . . . . . . . . Searches Triggered . | . . . . . . . . . Construction Impeded 2 | . . . . . . 1 1 . Haulers Reinforced . | . . . . . . . . . Active Scanning Responses . | . . . . . . . . . Cargo Convoy Interrupts . | . . . . . . . . . Stealth | -11 -10 -9 -9 -9 -8 -8 -7 -7 --------- Run | Yrd Mat Mat Min Exi Min Mat Fac Gar Distress Signals 5 | . . . . . . 5 . . Communications Jammed . | . . . . . . . . . Distress Signals . | . . . . . . . . . Times Spotted 152 | . . 8 . . 3 35 20 86 Peak Tracking Total 13 | . . 3 . . 2 6 4 13 Tactical Retreats 14 | . . . . . . 4 2 8 Traps | -11 -10 -9 -9 -9 -8 -8 -7 -7 ------- Run | Yrd Mat Mat Min Exi Min Mat Fac Gar Traps Triggered 14 | . 2 . . . . 3 1 8 Indirectly . | . . . . . . . . . Trap Hack Attempts . | . . . . . . . . . Triggered . | . . . . . . . . . Disarmed . | . . . . . . . . . Reprogrammed . | . . . . . . . . . Reused 3 | . . . . . . . . 3 Traps Extracted . | . . . . . . . . . Installed 3 | . . . . . . . . 3 Triggered . | . . . . . . . . . Most Traps Carried 2 | . . . . . . . . 2 Machines | -11 -10 -9 -9 -9 -8 -8 -7 -7 ---------- Run | Yrd Mat Mat Min Exi Min Mat Fac Gar Machines Disabled 12 | . . . . . . 3 6 3 Max in Single Turn 2 | . . . . . . 1 2 1 Machines Repaired . | . . . . . . . . . Machines Dismantled . | . . . . . . . . . Machines Sabotaged . | . . . . . . . . . Overloaded Fab Kills . | . . . . . . . . . Hacking | -11 -10 -9 -9 -9 -8 -8 -7 -7 --------- Run | Yrd Mat Mat Min Exi Min Mat Fac Gar Machines Accessed 14 | . . 4 . 2 . 1 7 . Terminals 7 | . . 3 . . . 1 3 . Fabricators 2 | . . . . . . . 2 . Repair Stations 1 | . . . . . . . 1 . Recycling Units 1 | . . 1 . . . . . . Scanalyzers . | . . . . . . . . . Garrison Access 1 | . . . . . . . 1 . Total Hacks 30 | . . 11 . 2 . 2 15 . Successful 12 | . . 5 . 2 . . 5 . Failed 18 | . . 6 . . . 2 10 . Catastrophic 5 | . . 2 . . . . 3 . Database Lockouts . | . . . . . . . . . Manual 15 | . . 2 . 1 . . 12 . Terminals 20 | . . 10 . . . 2 8 . Fabricators 3 | . . . . . . . 3 . Repair Stations 3 | . . . . . . . 3 . Recycling Units 1 | . . 1 . . . . . . Scanalyzers . | . . . . . . . . . Garrison Access 1 | . . . . . . . 1 . Terminal Hacks 7 | . . 4 . 2 . . 1 . Record 1 | . . . . 1 . . . . Emergency Access Points 1 | . . . . . . . 1 . Dispatch Records 1 | . . 1 . . . . . . Reinforcement Status 1 | . . 1 . . . . . . Zone Layout 2 | . . 2 . . . . . . Proto ID Catalog 1 | . . . . 1 . . . . Fabricator Hacks . | . . . . . . . . . Repair Station Hacks . | . . . . . . . . . Recycling Unit Hacks 1 | . . 1 . . . . . . Retrieve Components 1 | . . 1 . . . . . . Scanalyzer . | . . . . . . . . . Garrison Access Hacks 1 | . . . . . . . 1 . Unlock Access 1 | . . . . . . . 1 . Unauthorized Hacks 3 | . . . . . . . 3 . Terminals 1 | . . . . . . . 1 . Botnet 1 | . . . . . . . 1 . Fabricators 1 | . . . . . . . 1 . Liberate 1 | . . . . . . . 1 . Repair Stations 1 | . . . . . . . 1 . Patch 1 | . . . . . . . 1 . Recycling Units . | . . . . . . . . . Scanalyzers . | . . . . . . . . . Garrison Access . | . . . . . . . . . Data Cores Recovered . | . . . . . . . . . Used . | . . . . . . . . . Hacking Detections 9 | . . 2 . . . 1 6 . Full Trace Events . | . . . . . . . . . Feedback Events . | . . . . . . . . . Feedback Blocked . | . . . . . . . . . Robot Schematics Acquired . | . . . . . . . . . Robots Built . | . . . . . . . . . Authchips . | . . . . . . . . . Time . | . . . . . . . . . Total Robot Build Rating . | . . . . . . . . . Part Schematics Acquired . | . . . . . . . . . Parts Built . | . . . . . . . . . Authchips . | . . . . . . . . . Time . | . . . . . . . . . Total Part Build Rating . | . . . . . . . . . Parts Repaired . | . . . . . . . . . Time . | . . . . . . . . . Parts Recycled . | . . . . . . . . . Recycled Matter . | . . . . . . . . . Retrieved Matter . | . . . . . . . . . Retrieved Components 2 | . . 2 . . . . . . Parts Scanalyzed . | . . . . . . . . . Part Schematics Acquired . | . . . . . . . . . Parts Damaged . | . . . . . . . . . Bothacking | -11 -10 -9 -9 -9 -8 -8 -7 -7 ------------ Run | Yrd Mat Mat Min Exi Min Mat Fac Gar Used RIF Installer . | . . . . . . . . . Robots Hacked . | . . . . . . . . . Non-combat . | . . . . . . . . . Combat . | . . . . . . . . . Robot Hacks Applied . | . . . . . . . . . Relay Couplers Released . | . . . . . . . . . Fabnet Peak Effective % . | . . . . . . . . . Robots Rewired . | . . . . . . . . . Allies Hacked . | . . . . . . . . . Hacks Repelled . | . . . . . . . . . Allies | -11 -10 -9 -9 -9 -8 -8 -7 -7 -------- Run | Yrd Mat Mat Min Exi Min Mat Fac Gar Total Allies 7 | . . . 3 . . . . 4 Largest Group 3 | . . . 3 3 3 3 . 2 Highest-Rated Group 40 | . . . 40 40 40 40 . 17 Highest-Rated Ally 16 | . . . 16 16 16 16 . 9 Total Orders 1 | . . . . . . 1 . . ROAM 1 | . . . . . . 1 . . Ally Attacks 28 | . . . . . 6 11 . 11 Total Damage 189 | . . . . . 39 78 . 72 Kills 2 | . . . . . . . . 2 Allies Corrupted . | . . . . . . . . . Allies Melted . | . . . . . . . . . Field Lobotomies 4 | . . . . . . . . 4 Intel | -11 -10 -9 -9 -9 -8 -8 -7 -7 ------- Run | Yrd Mat Mat Min Exi Min Mat Fac Gar Active Infowar (turns) 1613 | 9 74 397 172 289 513 159 . . Seismic 1613 | 9 74 397 172 289 513 159 . . Robot Analysis Total . | . . . . . . . . . Derelict Logs Recovered . | . . . . . . . . . Drone Launches . | . . . . . . . . . Drone Recoveries . | . . . . . . . . . Exploration | -11 -10 -9 -9 -9 -8 -8 -7 -7 ------------- Run | Yrd Mat Mat Min Exi Min Mat Fac Gar Turns Passed 5255 | 111 74 397 172 289 513 1146 1258 1295 Spaces Moved 2723 | 64 68 270 129 222 333 421 637 579 Core 204 | 9 . . . . . . . 195 Treads 1034 | . . . . . . 150 637 247 Legs 12 | . . . . . . . . 12 Wheels 1348 | 55 68 270 129 222 333 271 . . Hover . | . . . . . . . . . Flight 125 | . . . . . . . . 125 Fastest Speed 26 | 50 95 110 125 125 125 125 150 26 Average Speed 146 | 87 106 121 125 125 142 184 153 149 Slowest Speed 312 | 95 110 125 125 125 215 235 232 312 Overloaded Moves . | . . . . . . . . . Propulsion Burnouts . | . . . . . . . . . Robots Hopped . | . . . . . . . . . Potential Cave-ins . | . . . . . . . . . Cave-ins Triggered . | . . . . . . . . . Exploration Rate (%) 34 | 4 18 22 29 59 70 39 17 55 Regions Visited 8 Branch Regions 3 Pre-discovered Areas 1 | . . . . 1 . . . . Known Exits Taken 1 | . . . . . . . 1 . Unknown Exits Taken 7 | 1 1 1 1 1 1 1 . . Scrap Searched 1 | . . . . . 1 . . . Spaces Dug 14 | . . . . . . 5 3 6 Terrain Destroyed 179 | . . 2 . . . 17 66 94 Melee . | . . . . . . . . . Projectile 25 | . . . . . . 5 17 3 AOE 154 | . . 2 . . . 12 49 91 Terrain Rammed . | . . . . . . . . . Walls Destroyed . | . . . . . . . . . Machines Disabled . | . . . . . . . . . Actions | -11 -10 -9 -9 -9 -8 -8 -7 -7 --------- Run | Yrd Mat Mat Min Exi Min Mat Fac Gar Total 3507 | 89 69 316 144 236 360 630 812 851 Wait 207 | . . 2 10 . 5 42 89 59 Move 2715 | 63 67 269 128 221 332 420 637 578 Hop . | . . . . . . . . . Pick Up 88 | 5 . 17 3 6 9 29 11 8 Fast Attach 47 | 7 . 5 . . . 8 4 23 Attach 23 | . . 2 . . . 7 9 5 Detach 2 | . . . . . . . 1 1 Swap 25 | 1 1 1 . 2 3 11 4 2 Drop 76 | . 1 9 3 7 5 31 8 12 Fire 259 | 13 . 11 . . 6 82 49 98 Melee . | . . . . . . . . . Ram 5 | . . . . . . . . 5 Kick 10 | . . . . . . . . 10 Crush 1 | . . . . . . . . 1 Escape Stasis 42 | . . . . . . . . 42 Rewire 4 | . . . . . . . . 4 Trap 3 | . . . . . . . . 3 Miscellaneous . | . . . . . . . . . Route ------- -11/Scrapyard -10/Materials -9/Materials -9/Mines -9/Exiles -8/Mines -8/Materials -7/Factory (discovered 2 exits: [*Sto] / Gar) -7/Garrison (discovered 1 exit: [*Fac]) History --------- Turn | Location | Event 4 | -11/Scrapyard | Discovered new exit (range 16) 112 | -11/Scrapyard | Entered Materials 169 | -10/Materials | Discovered new exit (range 15) 186 | -10/Materials | Entered another Materials area 186 | -9/Materials | Evolved 2 slots: Weapon x2 469 | -9/Materials | Discovered new exit (range 16) 472 | -9/Materials | Build established: Gunner 583 | -9/Materials | Entered Mines 585 | -9/Mines | Assisted by bots powering up and referring to "LRC-V3" 737 | -9/Mines | Deemed a non-threat by the Exiles lab entrance 739 | -9/Mines | Discovered new exit (range 5) 755 | -9/Mines | Entered Exiles 755 | -9/Exiles | Accompanied by 3 allies 787 | -9/Exiles | Met 8R-AWN 808 | -9/Exiles | Met EX-HEX 843 | -9/Exiles | Met EX-BIN 857 | -9/Exiles | Aligned with FarCom system 859 | -9/Exiles | Given EX-Vault access code 888 | -9/Exiles | Opened EX-Vault 901 | -9/Exiles | Found Chronowheel 903 | -9/Exiles | Found AWS/Thermal 908 | -9/Exiles | Found Field Lobotomy Kit 949 | -9/Exiles | Warned to stay clear of 0b10 Research branches 987 | -9/Exiles | Met EX-DEC 992 | -9/Exiles | Learned location of Zion (-6) 1028 | -9/Exiles | Discovered new exit (range 14) 1044 | -9/Exiles | Stole three prototypes: Chronowheel, AWS/Thermal, Field Lobotomy Kit 1044 | -9/Exiles | Entered Mines 1044 | -8/Mines | Accompanied by 3 allies 1338 | -8/Mines | Build established: Skirmisher 1388 | -8/Mines | Found DCF Scrap (13 items) 1526 | -8/Mines | Discovered new exit (range 12) 1557 | -8/Mines | Entered Materials 1557 | -8/Materials | Accompanied by 3 allies 1557 | -8/Materials | Evolved 2 slots: Propulsion x2 1626 | -8/Materials | Lost 3 allies 2350 | -8/Materials | Build established: Derelict-Skirmisher 2644 | -8/Materials | Discovered new exit (range 16) 2703 | -8/Materials | Entered Factory 2703 | -7/Factory | Evolved 2 slots: Propulsion x2 2705 | -7/Factory | FarCom data flow suspended 3352 | -7/Factory | Build established: Derelict-Gunner 3587 | -7/Factory | Discovered new exit (range 4) 3887 | -7/Factory | Garrison activated, responded to threat 3927 | -7/Factory | Lost 3 parts (1p2n) 3961 | -7/Factory | Identified exit to Garrison 3961 | -7/Factory | Entered Garrison 4037 | -7/Garrison | Build established: Gunner 4171 | -7/Garrison | Triggered checkpoint 4334 | -7/Garrison | Lost 4 parts (2n2w) 4628 | -7/Garrison | Assembled breached garrison interior 4789 | -7/Garrison | Build established: Scavenger-Gunner 4871 | -7/Garrison | Destroyed 10 combat bots 4940 | -7/Garrison | AWS/Thermal suddenly broke down 4992 | -7/Garrison | Released all parts (4) 5009 | -7/Garrison | Discovered new exit (range 13) 5011 | -7/Garrison | Destroyed 28 combat bots 5016 | -7/Garrison | Attempted to access garrison exit controls, blocked by remote lockdown 5021 | -7/Garrison | Lost 8 parts (1p5n2w) 5036 | -7/Garrison | Core integrity fell below 50% 5125 | -7/Garrison | Activated Chronowheel 5137 | -7/Garrison | System corruption reached 10% 5147 | -7/Garrison | Core integrity fell below 20% 5192 | -7/Garrison | Assimilated as-57164 with FLK Orb 5198 | -7/Garrison | Assimilated as-99037 with FLK Orb 5201 | -7/Garrison | Assimilated as-15132 with FLK Orb 5211 | -7/Garrison | Assimilated as-40148 with FLK Orb 5256 | -7/Garrison | Destroyed by P-60 Hacker with Shock Rifle Last Messages --------------- 05226_ Acquired 11 matter. 05228_ Acquired 5 matter. 05229_ Dropped Broken AWS/Thermal. 05229_ Acquired Autogun. 05231_ Acquired 19 matter. 05235_ Acquired VTOL Module. 05235_ as-46573 destroyed. 05237_ Acquired VTOL Module. 05240_ Acquired Lgt. Nuclear Core. 05242_ Acquired Corrupted VTOL Module. 05242_ Integrated Corrupted VTOL Module (+1). 05242_ Complication: VTOL Module rejected. 05242_ Complication: Lgt. Nuclear Core rejected. 05242_ Complication: VTOL Module rejected. 05247_ System corrupted: Component data lost. 05248_ Acquired Lgt. Nuclear Core. 05251_ Acquired VTOL Module. 05251_ VTOL Module destroyed. 05253_ Acquired VTOL Module. 05256_ ALERT: Garrison interior compromised. Map ----- +----------------------------------------------------+ | #????????????????????????????? | | """ """ #????????????????????????????? | | " " #????????????????????????????? | | " " #????????????????????????????? | | "" "" #????????????????????????????? | | #????????????????????????????? | | ## ####?#####??????????????????????? | | ?### # #????# #??????????????????????? | | ???### ###### #??????????????????????? | | ?????# #??????????????????????? | | ?????# #??????????????????????? | | ?????# ##########??????????????????????? | | ?????# #???????????????????????????????? | | ?????# #???????????????????????????????? | | ?????# #???????????????????????????????? | | ?????# #??#######??????????????????????? | | ?????# #??#"""""#??????????????????????? | | ?????# #??## ###?????????????????????? | | ?????#[ +??# #?????????????????????? | | ?????# %#??###### #?????????????????????? | | ####?# #???????# #?????????????????????? | | """### %#???????# #?????????????##??????? | | ! % #???????# ###?????????? ???????? | | [ #???????# #???????? "??#????? | | ""#### #???????# #?######"""""%%""#??? | | " #?# #???????# #?# @ !=""#??? | | ##### ######### ##### ![""#??? | | # [ p ""#??? | | ## ### ####################""""" ""???? | | ?? #?# #??????????????????? "#c##???? | | ???#?# #???????????????????? ??????? | | ###### #?????????????????????"####?????? | | #??????????????????????#????????? | | #???????????????????????????????? | | #########???????????????????????????????? | | #???????????????????????????????????????? | | #???????????????????????????????????????? | | #???????????????????????????????????????? | | #???????????????????????????????????????? | | #???????????????????????????????????????? | | #???????????????????????????????????????? | | ########????????????????????????????????? | | #????????????????????????????????? | | #????????????????????????????????? | | ##### #????????????????????????????????? | | ????# #????????????????????????????????? | | ????# #????????????????????????????????? | | ????# #????????#####???????????????????? | | ????# #????????# *=#???????????????????? | | ????# #?######## *%########"T"#????????? | +----------------------------------------------------+ Best States ------------- Heat Dissipation 61 Energy Generation 14 Energy Capacity 240 Matter Stores 300 Matter Capacity 300 Sight Range 16 Terrain Scan Density 210 Armor Coverage 225 Evasion (%) 64 Recoil Reduction 6 Item Schematics ----------------- None Robot Schematics ------------------ None Fabricated ------------ Nothing Repaired ---------- Nothing Alien Tech Used ----------------- None Achievements -------------- None Challenges ------------ None Game ------ Seed MobileRiotDissipator Manual? 0 Play Time 00:32:28 Cumulative 313.1 hours Start 2025.06.28 @ 16:28:32 End 2025.06.28 @ 17:02:13 Sessions 1 Manual Loads 0 Difficulty Rogue Special Mode None Game No. 276 Rogue 276 Adventurer 0 Explorer 0 Win Type - Total 2 Types 1/1/0/0/0/0/0/0/0/0 Lore% 77 Gallery% 80 Achievement% 72 Wizard Run 0 Options --------- Layout 1 ASCII 0 Keyboard 0 Movement Numpad Keybinds 0 Fullscreen 1 Font 24/Smallcaps Map View 50x35 Zoom Use 0% Tactical HUD 1 Map Filters NONE Filters NONE Steam 1 RUN: 9f2eadba-14af-41a0-a43d-9dda035c9d1f